bitfinex/quotes_BTCUSD_20250131
["timestamp","ask_amount","ask_price","bid_price","bid_amount"]
[1738339888097,0.006,105200.0,105190.0,0.14951652]
[1738339888257,0.16234884,105210.0,105190.0,0.14851352]
[1738339888466,0.5468,105200.0,105190.0,0.14863542]
[1738339888674,0.5468,105200.0,105190.0,0.22943542]
[1738339889029,0.5468,105200.0,105190.0,0.32667858]
[1738339889288,0.5468,105200.0,105190.0,0.37627858]
[1738339889501,1.4162,105230.0,105220.0,0.142558]
[1738339889707,1.4162,105230.0,105210.0,0.522737]
[1738339889909,1.4162,105230.0,105210.0,0.61998116]
[1738339890116,1.558749,105230.0,105200.0,0.197063]
[1738339890324,1.558745,105230.0,105210.0,0.142571]
[1738339890533,1.558745,105230.0,105200.0,0.339641]
[1738339890534,1.938877,105230.0,105200.0,0.339641]
[1738339890708,0.001188,105220.0,105190.0,0.65654533]
[1738339890910,0.333828,105220.0,105210.0,0.00530514]
[1738339891111,0.33264,105220.0,105210.0,0.003]
[1738339891321,0.33264,105220.0,105210.0,0.00229254]
[1738339891654,0.33264,105220.0,105210.0,0.00429254]
[1738339891864,0.33264,105220.0,105210.0,0.002]
[1738339892089,0.33264,105220.0,105210.0,0.00429254]
[1738339893011,0.33264,105220.0,105210.0,0.00229254]
[1738339893333,0.42988316,105220.0,105210.0,0.001]
[1738339893541,0.43088316,105220.0,105210.0,0.00330514]
[1738339893742,0.142585,105200.0,105190.0,0.02167433]
[1738339893979,0.142585,105200.0,105190.0,0.01367433]
[1738339894528,0.142585,105200.0,105190.0,0.01601023]
[1738339894777,0.382179,105220.0,105190.0,0.34873923]
[1738339894972,0.14376025,105210.0,105190.0,0.15860823]
[1738339895176,0.00118825,105210.0,105190.0,0.34873923]
[1738339895381,0.43190016,105220.0,105190.0,0.53887023]
[1738339895601,0.142576,105210.0,105190.0,0.16060823]
[1738339896482,1.011976,105210.0,105190.0,0.16060823]
[1738339896771,1.20326017,105210.0,105190.0,0.01801023]
[1738339896999,1.39336517,105210.0,105190.0,0.01901023]
[1738339897415,1.72196517,105210.0,105190.0,0.01801023]
[1738339897609,0.00118825,105200.0,105190.0,0.01801023]
[1738339897828,1.81802416,105210.0,105190.0,0.01801023]
[1738339898035,1.67544416,105210.0,105190.0,0.01801023]
[1738339898242,1.81802716,105210.0,105190.0,0.02301023]
[1738339898470,0.142585,105200.0,105190.0,0.00445781]
[1738339898826,0.14377333,105200.0,105190.0,0.00945781]
[1738339899041,0.14377333,105200.0,105190.0,0.00245781]
[1738339899436,0.14377333,105200.0,105190.0,0.00745781]
[1738339899646,1.81802816,105210.0,105190.0,0.00245781]
[1738339899806,1.530679,105210.0,105190.0,0.00245781]
[1738339900344,0.142585,105200.0,105190.0,0.00245781]
[1738339900549,0.14377333,105200.0,105190.0,0.00245781]
[1738339901941,0.14377333,105200.0,105190.0,0.00345781]
[1738339902362,1.01317333,105200.0,105190.0,0.00345781]
[1738339902544,1.011985,105200.0,105190.0,0.00345781]
[1738339903156,1.011985,105200.0,105190.0,0.00245781]
[1738339903464,1.011985,105200.0,105190.0,0.00545781]
[1738339905790,1.011985,105200.0,105190.0,0.00967676]
[1738339906151,1.011985,105200.0,105190.0,0.00767676]
[1738339906355,1.10922816,105200.0,105190.0,0.00767676]
[1738339906873,1.29142261,105200.0,105190.0,0.00767676]
[1738339910056,1.29142261,105200.0,105190.0,0.00667676]
[1738339910374,1.29542261,105200.0,105190.0,0.00667676]
[1738339910560,1.29242261,105200.0,105190.0,0.00667676]
[1738339910862,1.23172938,105200.0,105190.0,0.00667676]
[1738339911092,1.32908614,105200.0,105190.0,0.00667676]
[1738339911438,1.23172938,105200.0,105190.0,0.00667676]
[1738339911653,1.23072938,105200.0,105190.0,0.00667676]
[1738339912084,1.23272938,105200.0,105190.0,0.00667676]
[1738339912490,1.23072938,105200.0,105190.0,0.00667676]
[1738339912920,1.23272938,105200.0,105190.0,0.00667676]
[1738339913260,1.23572938,105200.0,105190.0,0.00667676]
[1738339913873,1.23598558,105200.0,105190.0,0.00667676]
[1738339914077,1.32208558,105200.0,105190.0,0.00667676]
[1738339914522,1.31908558,105200.0,105190.0,0.00667676]
[1738339914812,1.31208558,105200.0,105190.0,0.00667676]
[1738339917725,1.32208558,105200.0,105190.0,0.00667676]
[1738339917929,1.19058436,105200.0,105190.0,0.00667676]
[1738339921111,1.18858436,105200.0,105190.0,0.00667676]
[1738339921319,1.10948436,105200.0,105190.0,0.00667676]
[1738339921531,1.11048436,105200.0,105190.0,0.00667676]
[1738339921743,1.0132412,105200.0,105190.0,0.00667676]
[1738339921953,1.0122412,105200.0,105190.0,0.00667676]
[1738339922367,0.8706562,105200.0,105190.0,0.00667676]
[1738339922781,0.8706562,105200.0,105190.0,0.14927576]
[1738339922994,0.8706562,105200.0,105190.0,0.17882951]
[1738339923223,0.8706562,105200.0,105190.0,0.22392951]
[1738339924152,0.8696562,105200.0,105190.0,0.22392951]
[1738339924598,0.8696562,105200.0,105190.0,0.22492951]
[1738339925007,0.8696562,105200.0,105190.0,0.22392951]
[1738339925215,0.8696562,105200.0,105190.0,0.17882951]
[1738339925783,0.8696562,105200.0,105190.0,0.18082951]
[1738339926331,0.8696562,105200.0,105190.0,0.18070331]
[1738339927229,0.8696562,105200.0,105190.0,0.18270331]
[1738339927440,0.8696562,105200.0,105190.0,0.18070331]
[1738339927861,0.8696562,105200.0,105190.0,0.18570331]
[1738339928899,0.8696562,105200.0,105190.0,0.04310431]
[1738339929112,0.8696562,105200.0,105190.0,0.18570331]
[1738339931019,0.8696562,105200.0,105190.0,0.04310431]
[1738339931223,1.10948436,105200.0,105190.0,0.04310431]
[1738339931658,0.96689936,105200.0,105190.0,0.04310431]
[1738339932136,1.10948436,105200.0,105190.0,0.04310431]
[1738339932354,1.10948436,105200.0,105190.0,0.01355056]
[1738339937371,0.8696562,105200.0,105190.0,0.15627146]
[1738339937579,0.8696562,105200.0,105190.0,0.18586701]
[1738339937790,0.0002562,105200.0,105190.0,0.41201017]
[1738339939037,0.0002562,105200.0,105190.0,0.40701017]
[1738339939518,0.0012562,105200.0,105190.0,0.31776701]
[1738339939724,0.0012562,105200.0,105190.0,0.41501017]
[1738339940146,0.0012562,105200.0,105190.0,0.41301017]
[1738339940568,0.0012562,105200.0,105190.0,0.41601017]
[1738339940984,0.0012562,105200.0,105190.0,0.41301017]
[1738339941293,0.0012562,105200.0,105190.0,0.41501017]
[1738339941502,0.0002562,105200.0,105190.0,0.40701017]
[1738339942019,0.0002562,105200.0,105190.0,0.41401017]
[1738339942217,0.0002562,105200.0,105190.0,0.40701017]
[1738339942446,0.0002562,105200.0,105190.0,0.41401017]
[1738339943302,0.0002562,105200.0,105190.0,0.42085017]
[1738339945246,0.3286,105220.0,105210.0,0.142571]
[1738339945459,0.3286,105220.0,105210.0,0.34760971]
[1738339945669,0.3286,105220.0,105210.0,0.4018617]
[1738339947098,0.3286,105220.0,105210.0,0.4028617]
[1738339947546,0.3286,105220.0,105210.0,0.4058617]
[1738339947956,0.3286,105220.0,105210.0,0.4038617]
[1738339948281,0.3286,105220.0,105210.0,0.4108617]
[1738339948711,0.29546501,105220.0,105210.0,0.4208617]
[1738339948919,0.29546501,105220.0,105210.0,0.42414445]
[1738339949125,0.28882922,105220.0,105210.0,0.42414445]
[1738339949363,0.26355664,105220.0,105210.0,0.72309745]
[1738339949983,0.0002562,105230.0,105210.0,0.7362116]
[1738339950119,0.0002562,105230.0,105220.0,0.23980116]
[1738339950330,0.0002562,105230.0,105220.0,0.26939671]
[1738339950579,0.0002562,105230.0,105220.0,0.27700819]
[1738339950801,0.0002562,105230.0,105220.0,0.35280819]
[1738339951287,0.0002562,105230.0,105220.0,0.35380819]
[1738339951629,0.0002562,105230.0,105220.0,0.35780819]
[1738339951837,0.0002562,105230.0,105220.0,0.35380819]
[1738339952264,0.0002562,105230.0,105220.0,0.37080819]
[1738339952467,0.0002562,105230.0,105220.0,0.36980819]
[1738339952888,0.0002562,105230.0,105220.0,0.85550319]
[1738339953089,0.0002562,105230.0,105220.0,0.77244719]
[1738339953299,0.26355664,105260.0,105250.0,0.142517]
[1738339953503,0.26355664,105260.0,105250.0,0.23927191]
[1738339953726,0.26355664,105260.0,105250.0,0.14528081]
[1738339953932,0.48596064,105260.0,105250.0,0.00325206]
[1738339954138,0.6305038,105260.0,105250.0,0.00325206]
[1738339954354,0.14252,105250.0,105230.0,0.380096]
[1738339954578,0.33373377,105250.0,105230.0,0.332581]
[1738339954999,0.14370777,105250.0,105230.0,0.522633]
[1738339955669,0.14370777,105250.0,105230.0,0.712683]
[1738339956096,0.14370777,105250.0,105230.0,0.522631]
[1738339956296,0.083,105240.0,105230.0,0.142535]
[1738339957377,0.083,105240.0,105230.0,0.14581775]
[1738339957629,0.083,105240.0,105230.0,0.14781775]
[1738339957982,0.083,105240.0,105230.0,0.14581775]
[1738339958231,0.083,105240.0,105230.0,0.15081775]
[1738339959009,0.083,105240.0,105230.0,0.16369183]
[1738339959836,0.083,105240.0,105230.0,0.16569183]
[1738339960042,0.225531,105240.0,105230.0,0.02315683]
[1738339960263,0.225531,105240.0,105230.0,0.02115683]
[1738339960452,0.225531,105240.0,105230.0,0.02215683]
[1738339960725,0.37107416,105240.0,105230.0,0.00428275]
[1738339961170,0.37133015,105240.0,105230.0,0.00728275]
[1738339961845,1.78753015,105240.0,105230.0,0.00728275]
[1738339962959,1.78753015,105240.0,105230.0,0.00428275]
[1738339964472,1.78753015,105240.0,105230.0,0.00328275]
[1738339964790,1.64499915,105240.0,105220.0,0.0131368]
[1738339964992,0.47233201,105230.0,105220.0,0.0131368]
[1738339965131,0.471144,105230.0,105220.0,0.0131368]
[1738339965644,0.471144,105230.0,105220.0,0.01744936]
[1738339966086,0.471144,105230.0,105220.0,0.01844936]
[1738339966479,0.471144,105230.0,105220.0,0.02044936]
[1738339967854,0.471144,105230.0,105220.0,0.02144936]
[1738339968304,0.471144,105230.0,105220.0,0.02475919]
[1738339977790,0.471144,105230.0,105220.0,0.01174429]
[1738339978129,0.56838716,105230.0,105220.0,0.01174429]
[1738339978325,0.64448716,105230.0,105220.0,0.01174429]
[1738339980458,0.547244,105230.0,105220.0,0.01174429]
[1738339982191,0.64448716,105230.0,105220.0,0.01174429]
[1738339982569,0.31588716,105230.0,105220.0,0.01174429]
[1738339983721,0.31588716,105230.0,105220.0,0.01050176]
[1738339984130,0.218644,105230.0,105220.0,0.15305976]
[1738339984466,0.218644,105230.0,105220.0,0.01050176]
[1738339986685,0.31588716,105230.0,105220.0,0.01050176]
[1738339988244,0.31588716,105230.0,105220.0,0.00944833]
[1738339990848,0.36548716,105230.0,105220.0,0.00944833]
[1738339991484,0.36548716,105230.0,105220.0,0.00844833]
[1738339991910,0.36648716,105230.0,105220.0,0.00844833]
[1738339992319,0.36548716,105230.0,105220.0,0.00844833]
[1738339992764,0.36748716,105230.0,105220.0,0.00844833]
[1738339993831,0.36548716,105230.0,105220.0,0.00844833]
[1738339994299,0.36648716,105230.0,105220.0,0.00844833]
[1738339994507,0.36648716,105230.0,105220.0,0.00544833]
[1738339994713,0.36548716,105230.0,105220.0,0.00544833]
[1738339994922,0.36748716,105230.0,105220.0,0.00544833]
[1738339995302,0.38449995,105230.0,105220.0,0.00544833]
[1738339997791,0.38549995,105230.0,105220.0,0.00544833]
[1738339999210,0.38449995,105230.0,105220.0,0.00544833]
[1738339999874,0.38649995,105230.0,105220.0,0.00544833]
[1738340001490,0.39649995,105230.0,105220.0,0.00544833]
[1738340001929,1.7448,105220.0,105190.0,0.0001219]
[1738340002307,0.271285,105200.0,105190.0,0.0001219]
[1738340002509,0.36852816,105200.0,105190.0,0.0001219]
[1738340003173,0.36852816,105200.0,105190.0,0.0011219]
[1738340004385,0.36852816,105200.0,105190.0,0.0001219]
[1738340004751,0.3879977,105200.0,105190.0,0.0001219]
[1738340006575,0.3879977,105200.0,105190.0,0.0011219]
[1738340007113,0.3879977,105200.0,105190.0,0.0001219]
[1738340007314,0.3899977,105200.0,105190.0,0.0001219]
[1738340008107,0.3919977,105200.0,105190.0,0.0001219]
[1738340008454,0.3112977,105200.0,105190.0,0.0001219]
[1738340008669,0.004,105200.0,105190.0,0.2669209]
[1738340009095,0.004,105200.0,105190.0,0.29645595]
[1738340009322,0.002,105200.0,105190.0,0.29645595]
[1738340009730,0.003,105200.0,105190.0,0.29645595]
[1738340010142,0.002,105200.0,105190.0,0.29645595]
[1738340010805,0.002,105200.0,105190.0,0.2210209]
[1738340011730,1.938981,105210.0,105190.0,0.6012659]
[1738340011975,2.03622416,105210.0,105190.0,0.6012659]
[1738340012235,1.84611916,105210.0,105200.0,0.142585]
[1738340012501,0.97671916,105210.0,105200.0,0.142585]
[1738340012982,0.5468,105210.0,105200.0,0.142585]
[1738340013203,0.5468,105210.0,105200.0,0.29631547]
[1738340014041,0.142544,105230.0,105220.0,0.332612]
[1738340014247,0.33379199,105230.0,105210.0,0.522732]
[1738340014461,0.00118804,105220.0,105210.0,0.190084]
[1738340014869,0.2409892,105220.0,105210.0,0.190084]
[1738340015077,0.23980116,105220.0,105210.0,0.190084]
[1738340015297,0.649381,105230.0,105210.0,0.190084]
[1738340015555,0.09724316,105230.0,105220.0,0.142558]
[1738340015756,0.87964999,105240.0,105220.0,0.332625]
[1738340016100,1.16694315,105240.0,105220.0,0.522693]
[1738340016506,0.97689115,105240.0,105220.0,0.522693]
[1738340016709,0.68959799,105240.0,105230.0,0.142544]
[1738340016954,0.54705599,105240.0,105230.0,0.142544]
[1738340017090,0.68958699,105240.0,105230.0,0.142544]
[1738340018336,1.01818699,105240.0,105230.0,0.142544]
[1738340018723,0.87565599,105240.0,105230.0,0.142544]
[1738340020105,1.01818699,105240.0,105230.0,0.142544]
[1738340021288,0.87565599,105240.0,105230.0,0.142544]
[1738340021659,1.01818699,105240.0,105230.0,0.142544]
[1738340022076,0.32885599,105240.0,105230.0,0.142544]
[1738340022277,1.19825599,105240.0,105230.0,0.142544]
[1738340022855,1.34078699,105240.0,105230.0,0.142544]
[1738340023190,1.34079199,105240.0,105230.0,0.142544]
[1738340023386,1.53084299,105240.0,105230.0,0.142544]
[1738340023598,1.72089299,105240.0,105220.0,0.53464278]
[1738340023797,1.72089299,105240.0,105220.0,0.15451278]
[1738340023798,0.142544,105230.0,105220.0,0.15451278]
[1738340023999,1.72190099,105240.0,105220.0,0.34458178]
[1738340024197,0.142544,105230.0,105220.0,0.15451278]
[1738340024397,1.72190099,105240.0,105220.0,0.34458078]
[1738340024650,1.72190099,105240.0,105220.0,0.34458178]
[1738340024861,1.72190099,105240.0,105220.0,0.53465078]
[1738340025138,1.72190099,105240.0,105220.0,0.34458178]
[1738340025344,1.72190099,105240.0,105220.0,0.34858178]
[1738340025581,1.72190099,105240.0,105220.0,0.53865078]
[1738340025776,0.00118792,105230.0,105220.0,0.15851278]
[1738340026788,1.80210099,105240.0,105220.0,0.34857678]
[1738340027004,1.80110099,105240.0,105220.0,0.53864278]
[1738340027733,1.61104999,105240.0,105230.0,0.142544]
[1738340028151,1.80109899,105240.0,105220.0,0.53864278]
[1738340028356,1.80109899,105240.0,105220.0,0.53964278]
[1738340028764,1.80109899,105240.0,105220.0,0.72871178]
[1738340028969,1.61104899,105240.0,105220.0,0.53864278]
[1738340029119,1.80109899,105240.0,105220.0,0.34457678]
[1738340029330,1.80109899,105240.0,105220.0,0.53464478]
[1738340029508,1.61104899,105240.0,105230.0,0.142544]
[1738340030134,1.61104899,105240.0,105220.0,0.53964378]
[1738340030337,1.61104899,105240.0,105230.0,0.142544]
[1738340030562,1.61104899,105240.0,105230.0,0.143544]
[1738340030973,1.61104899,105240.0,105230.0,0.142544]
[1738340031143,1.61104899,105240.0,105230.0,0.14544486]
[1738340031344,1.61104899,105240.0,105230.0,0.14314911]
[1738340031762,1.42099999,105240.0,105230.0,0.14314911]
[1738340031985,1.19825599,105240.0,105230.0,0.14314911]
[1738340032212,1.19825599,105240.0,105230.0,0.1471355]
[1738340032397,0.00025599,105240.0,105230.0,0.2296355]
[1738340032838,0.00025599,105240.0,105230.0,0.2306355]
[1738340034311,0.00025599,105240.0,105230.0,0.1481355]
[1738340034739,0.14397482,105240.0,105230.0,0.1481355]
[1738340035280,0.00144382,105240.0,105230.0,0.1481355]
[1738340037850,0.00025599,105240.0,105230.0,0.2249355]
[1738340038050,0.00025599,105240.0,105230.0,0.32217866]
[1738340038270,0.00025599,105240.0,105230.0,0.35161658]
[1738340039598,0.00025599,105240.0,105230.0,0.35561658]
[1738340039777,0.00025599,105240.0,105230.0,0.40291658]
[1738340042604,0.00025599,105240.0,105230.0,0.41507785]
[1738340049772,0.00025599,105240.0,105230.0,0.29097785]
[1738340050358,0.00025599,105240.0,105230.0,0.19373469]
[1738340050559,0.00025599,105240.0,105230.0,0.18157342]
[1738340053773,0.12305599,105240.0,105230.0,0.18157342]
[1738340056387,0.26677488,105240.0,105230.0,0.0095915]
[1738340056632,0.26558699,105240.0,105230.0,0.0095915]
[1738340056841,0.36283015,105240.0,105230.0,0.0095915]
[1738340057255,0.36283015,105240.0,105230.0,0.0055915]
[1738340057620,0.36283015,105240.0,105230.0,0.0045915]
[1738340057827,0.36283015,105240.0,105230.0,0.0055915]
[1738340058439,0.36283015,105240.0,105230.0,0.0045915]
[1738340058656,0.36283015,105240.0,105230.0,0.0085915]
[1738340059062,0.36283015,105240.0,105230.0,0.0045915]
[1738340062431,0.42816822,105240.0,105230.0,0.0045915]
[1738340063929,0.44684641,105240.0,105230.0,0.0045915]
[1738340066456,0.38250834,105240.0,105230.0,0.0045915]
[1738340067315,0.22129915,105240.0,105230.0,0.1471355]
[1738340067497,0.04845599,105240.0,105230.0,0.1471355]
[1738340067965,0.00125599,105240.0,105230.0,0.1471355]
[1738340068815,0.00244388,105240.0,105230.0,0.1471355]
[1738340069243,0.00125599,105240.0,105230.0,0.1471355]
[1738340071103,0.00025599,105240.0,105230.0,0.1471355]
[1738340071524,0.00025599,105240.0,105230.0,0.1481355]
[1738340081142,0.00025599,105240.0,105230.0,0.17767733]
[1738340084002,0.00025599,105240.0,105230.0,0.17735059]
[1738340088965,0.00025599,105240.0,105230.0,0.17830464]
[1738340090346,0.00025599,105240.0,105230.0,0.2755478]
[1738340090764,0.00025599,105240.0,105230.0,0.4027478]
[1738340090925,0.00025599,105240.0,105230.0,0.4026931]
[1738340091565,0.00025599,105240.0,105230.0,0.17824994]
[1738340094999,0.00025599,105240.0,105230.0,0.1779697]
[1738340095659,1.74505599,105240.0,105230.0,0.1779697]
[1738340096291,1.74505599,105240.0,105230.0,0.27521286]
[1738340098026,1.74505599,105240.0,105230.0,0.95801286]
[1738340100332,1.74505599,105240.0,105230.0,1.03801286]
[1738340101377,1.74505599,105240.0,105230.0,1.03701286]
[1738340101610,0.32885599,105240.0,105230.0,1.03701286]
[1738340101791,0.32885599,105240.0,105230.0,1.04201286]
[1738340104073,0.32885599,105240.0,105230.0,0.96201286]
[1738340113081,0.32885599,105240.0,105230.0,0.96877286]
[1738340113283,0.45225599,105240.0,105230.0,0.8647697]
[1738340114868,0.45225599,105240.0,105230.0,0.8648916]
[1738340118255,0.46078691,105240.0,105230.0,0.69280577]
[1738340119418,0.36343015,105240.0,105230.0,0.69180577]
[1738340119772,0.36343015,105240.0,105230.0,0.69280577]
[1738340120408,0.36343015,105240.0,105230.0,0.69180577]
[1738340120624,0.36543015,105240.0,105230.0,0.69180577]
[1738340121452,0.38481318,105240.0,105230.0,0.69180577]
[1738340121680,0.39627668,105240.0,105230.0,0.69180577]
[1738340122647,0.42627668,105240.0,105230.0,0.69180577]
[1738340122915,0.41627668,105240.0,105230.0,0.51576873]
[1738340123126,0.35087668,105240.0,105230.0,0.05914775]
[1738340123337,0.186671,105210.0,105200.0,0.0846807]
[1738340123552,0.30391416,105210.0,105200.0,0.08841587]
[1738340123760,0.35409426,105210.0,105200.0,0.01797427]
[1738340123977,0.32409426,105210.0,105200.0,0.01797427]
[1738340124197,0.32409426,105210.0,105200.0,0.00422681]
[1738340124818,0.35170462,105210.0,105200.0,0.00422681]
[1738340125246,0.01,105190.0,105170.0,0.01392556]
[1738340125470,0.29414397,105180.0,105170.0,0.01392556]
[1738340125680,0.32056552,105180.0,105170.0,0.01392556]
[1738340125883,0.29295516,105180.0,105170.0,0.01392556]
[1738340126092,0.32040941,105180.0,105170.0,0.01392556]
[1738340126305,2.07520941,105180.0,105170.0,0.01392556]
[1738340126518,2.03775516,105180.0,105170.0,0.01392556]
[1738340126746,1.84504316,105180.0,105170.0,0.15667346]
[1738340126968,0.003,105180.0,105170.0,0.20217346]
[1738340127809,0.24285516,105180.0,105170.0,0.01404746]
[1738340128025,0.23985516,105180.0,105170.0,0.01504746]
[1738340128244,0.23985516,105180.0,105170.0,0.15767346]
[1738340128446,0.23985516,105180.0,105170.0,0.15667346]
[1738340128879,0.23985516,105180.0,105170.0,0.1430479]
[1738340129539,0.23985516,105180.0,105170.0,0.0004219]
[1738340129762,0.09724316,105180.0,105170.0,0.1430479]
[1738340129985,0.00118861,105180.0,105170.0,0.1430479]
[1738340130209,0.3516982,105200.0,105180.0,0.142612]
[1738340130437,0.395742,105220.0,105190.0,0.142599]
[1738340130686,0.01923122,105210.0,105200.0,0.142584]
[1738340130907,0.35190622,105210.0,105190.0,0.142599]
[1738340131121,0.200076,105230.0,105190.0,0.219499]
[1738340131122,0.190076,105230.0,105190.0,0.219499]
[1738340131343,0.09724316,105200.0,105180.0,0.219507]
[1738340131561,0.142578,105210.0,105190.0,0.142596]
[1738340131772,0.142578,105210.0,105190.0,0.332727]
[1738340131773,0.23981616,105210.0,105190.0,0.332727]
[1738340132009,0.23981516,105210.0,105190.0,0.142596]
[1738340132238,0.23981516,105210.0,105180.0,0.40964]
[1738340132448,0.23981516,105210.0,105180.0,0.409639]
[1738340132449,0.14377432,105200.0,105180.0,0.409639]
[1738340132662,0.43113348,105200.0,105190.0,0.001]
[1738340132874,0.23982916,105200.0,105190.0,0.01861555]
[1738340133091,0.23982916,105200.0,105190.0,0.01761555]
[1738340133719,0.25895199,105200.0,105190.0,0.01761555]
[1738340133962,0.21651776,105200.0,105180.0,0.01761555]
[1738340134178,0.24103073,105190.0,105180.0,0.01761555]
[1738340134426,0.23984216,105190.0,105180.0,0.01761555]
[1738340135462,0.142612,105180.0,105170.0,0.0004219]
[1738340135670,0.24104384,105180.0,105170.0,0.0004219]
[1738340135905,0.23985516,105180.0,105170.0,0.0004219]
[1738340136353,0.09724316,105180.0,105170.0,0.1430479]
[1738340136559,0.09843178,105180.0,105170.0,0.1430479]
[1738340136744,0.09724316,105180.0,105170.0,0.1430479]
[1738340136917,0.002,105190.0,105170.0,0.3332079]
[1738340137158,0.10143174,105190.0,105170.0,0.3332079]
[1738340137350,0.24403074,105190.0,105170.0,0.3332079]
[1738340137550,0.10043174,105190.0,105170.0,0.3332079]
[1738340137707,0.09843174,105190.0,105170.0,0.3332079]
[1738340138114,0.002,105180.0,105170.0,0.1430479]
[1738340138974,0.002,105180.0,105170.0,0.1440479]
[1738340139152,0.09843174,105190.0,105170.0,0.3332079]
[1738340139614,0.09843174,105190.0,105170.0,0.3342079]
[1738340139981,0.09843174,105190.0,105170.0,0.5243759]
[1738340140161,1.7448,105180.0,105170.0,0.1440479]
[1738340140540,1.7448,105180.0,105170.0,0.2229479]
[1738340140755,1.7448,105180.0,105170.0,0.2706479]
[1738340141364,1.7448,105180.0,105170.0,0.2696479]
[1738340142230,1.7448,105180.0,105170.0,0.2706479]
[1738340142391,1.7448,105180.0,105170.0,0.1440479]
[1738340142634,1.7448,105180.0,105170.0,0.1430479]
[1738340143013,1.7448,105180.0,105170.0,0.1440479]
[1738340144291,1.7448,105180.0,105170.0,0.1430479]
[1738340144502,1.7448,105180.0,105170.0,0.1440479]
[1738340146046,0.332732,105190.0,105170.0,0.3342159]
[1738340146271,0.00118856,105180.0,105170.0,0.1440479]
[1738340147222,0.09843172,105180.0,105170.0,0.0014219]
[1738340147429,0.24104372,105180.0,105170.0,0.0014219]
[1738340147644,0.23985516,105180.0,105170.0,0.0014219]
[1738340147844,0.23985516,105180.0,105170.0,0.1440479]
[1738340148274,0.23985516,105180.0,105170.0,0.0014219]
[1738340149098,0.23985516,105180.0,105170.0,0.1440479]
[1738340149304,0.09724316,105180.0,105170.0,0.1440479]
[1738340149457,0.24104375,105180.0,105170.0,0.1440479]
[1738340149686,0.23985516,105180.0,105170.0,0.1440479]
[1738340150109,0.23985516,105180.0,105170.0,0.0008832]
[1738340150739,0.23985516,105180.0,105170.0,0.1435092]
[1738340151393,0.24085516,105180.0,105170.0,0.1435092]
[1738340151593,0.24085516,105180.0,105170.0,0.142626]
[1738340151843,0.24285516,105180.0,105170.0,0.142626]
[1738340153590,0.24285516,105180.0,105170.0,0.17222009]
[1738340154287,0.24285516,105180.0,105160.0,0.000122]
[1738340154530,0.24105791,105170.0,105160.0,0.000122]
[1738340154772,0.23986916,105170.0,105160.0,0.1723681]
[1738340155294,0.23986916,105170.0,105160.0,0.0297291]
[1738340155580,0.23986916,105170.0,105160.0,0.0307291]
[1738340155845,0.23986916,105170.0,105160.0,0.0297291]
[1738340156073,0.23986916,105170.0,105160.0,0.000122]
[1738340156266,0.23986916,105170.0,105160.0,0.001122]
[1738340156986,0.33305519,105170.0,105160.0,0.001122]
[1738340157222,0.23986916,105170.0,105160.0,0.001122]
[1738340157704,0.23986916,105170.0,105160.0,0.03076666]
[1738340157964,0.3613693,105170.0,105160.0,0.03076666]
[1738340158199,0.23986916,105170.0,105160.0,0.001122]
[1738340160180,0.25094027,105170.0,105160.0,0.001122]
[1738340161155,0.25094027,105170.0,105160.0,0.000122]
[1738340161424,0.27206944,105170.0,105160.0,0.000122]
[1738340161926,0.27306944,105170.0,105160.0,0.000122]
[1738340163478,0.27206944,105170.0,105160.0,0.000122]
[1738340163719,0.27306944,105170.0,105160.0,0.000122]
[1738340163952,0.39456958,105170.0,105160.0,0.000122]
[1738340164173,0.27006944,105170.0,105160.0,0.000122]
[1738340164404,0.27206944,105170.0,105160.0,0.000122]
[1738340164640,0.27306944,105170.0,105160.0,0.000122]
[1738340164873,0.27106944,105170.0,105160.0,0.000122]
[1738340165122,0.24286916,105170.0,105160.0,0.000122]
[1738340165376,0.003,105170.0,105160.0,0.266861]
[1738340165866,0.003,105170.0,105160.0,0.29647727]
[1738340168864,0.24286916,105170.0,105160.0,0.15383827]
[1738340169081,0.3643693,105170.0,105160.0,0.000122]
[1738340171755,0.24286916,105170.0,105160.0,0.000122]
[1738340172518,0.38329719,105170.0,105160.0,0.000122]
[1738340172740,0.26179705,105170.0,105160.0,0.142761]
[1738340172945,0.24286916,105170.0,105160.0,0.000122]
[1738340173156,0.24312536,105170.0,105160.0,0.000122]
[1738340175369,0.3646255,105170.0,105160.0,0.000122]
[1738340181708,0.3946255,105170.0,105160.0,0.000122]
[1738340185049,0.3746255,105170.0,105160.0,0.000122]
[1738340185305,0.3946255,105170.0,105160.0,0.000122]
[1738340185573,0.3746255,105170.0,105160.0,0.000122]
[1738340185821,0.46898226,105170.0,105160.0,0.000122]
[1738340186075,0.47198226,105170.0,105160.0,0.000122]
[1738340186315,0.49998226,105170.0,105160.0,0.001122]
[1738340186427,0.47998226,105170.0,105160.0,0.001122]
[1738340187217,0.47998226,105170.0,105160.0,0.00097115]
[1738340187447,0.49998226,105170.0,105160.0,0.00097115]
[1738340187884,0.47998226,105170.0,105160.0,0.00097115]
[1738340188524,0.25112536,105170.0,105160.0,0.00097115]
[1738340189397,0.3726255,105170.0,105160.0,0.00097115]
[1738340190484,0.25112536,105170.0,105160.0,0.00097115]
[1738340191113,0.25112536,105170.0,105160.0,0.12567115]
[1738340191313,0.25112536,105170.0,105160.0,0.26831015]
[1738340191611,0.25112536,105170.0,105160.0,0.12567115]
[1738340192310,0.25112536,105170.0,105160.0,0.26831015]
[1738340193317,0.25112536,105170.0,105160.0,0.12567115]
[1738340194619,0.0212562,105170.0,105160.0,0.26831015]
[1738340195464,0.0132562,105170.0,105160.0,0.267339]
[1738340195670,0.0132562,105170.0,105160.0,0.29696434]
[1738340195854,0.0172562,105170.0,105160.0,0.29696434]
[1738340196187,0.0142562,105170.0,105160.0,0.29696434]
[1738340196394,0.0162562,105170.0,105160.0,0.267339]
[1738340196603,0.0182562,105170.0,105160.0,0.29695992]
[1738340196829,0.0182562,105170.0,105160.0,0.267461]
[1738340197092,0.0162562,105170.0,105160.0,0.267461]
[1738340197957,0.1588822,105170.0,105160.0,0.267461]
[1738340198660,0.25731402,105170.0,105160.0,0.124822]
[1738340198855,0.25612536,105170.0,105160.0,0.124822]
[1738340199099,1.22288212,105170.0,105160.0,0.124822]
[1738340199305,1.34438226,105170.0,105160.0,0.124822]
[1738340199511,1.2470255,105170.0,105160.0,0.124822]
[1738340201054,1.12652536,105170.0,105160.0,0.124822]
[1738340201672,1.2480255,105170.0,105160.0,0.000122]
[1738340203921,1.2480255,105170.0,105160.0,0.00443895]
[1738340204129,1.26507956,105170.0,105160.0,0.00443895]
[1738340205674,1.26507956,105170.0,105160.0,0.00490469]
[1738340206514,1.2480255,105170.0,105160.0,0.00490469]
[1738340211020,1.14570929,105170.0,105160.0,0.13080469]
[1738340212011,1.26720943,105170.0,105160.0,0.13080469]
[1738340213225,1.29720943,105170.0,105160.0,0.00490469]